Workbook

Sheet Почитай-ка
A1: Городская школа №3
A2: Почитай-ка
A3: Михайлова Т.В.
A4: общая площадь школы | B4: 4396.6 | G4: =B4 -> 4396.6
A5: занимаемая площадь | B5: 56 | G5: =B5 -> 56
A6: кол-во занятий в неделю(часы) | B6: 1 | G6: 1
A7: кол-во занятий в месяц(часы) | B7: =B6*4 -> 4 | G7: 4
A8: режим работы (часы) | B8: 12 | G8: 12
A9: кол-во детей | B9: 9 | G9: 9
A10: стоим-сть используемого оборудования в.т.ч | B10: =B11+B12+B14+B13 -> 144810 | G10: 144810
A11: ноутбок,компьютер | B11: 19910 | G11: 19910
A12: интерактивный комплект | B12: 92500 | G12: 92500
A13: документ камера | B13: 23050 | G13: 23050
A14: принтер | B14: 9350 | G14: 9350
A15: Оплата труда : | B15: =B22 -> 10.74 | G15: 10.74
A16: оклад | B16: 14232.00
A17: за метод.литер. | B17: 100.00
A18: за категорию(первая)( 12%) | B18: =B16*12/100 -> 1707.84
A19: за звание | B19: 0.00
A20: начисление 30,2% | B20: =(B16+B17+B18)*30.2% -> 4844.03
A21: всего | B21: =SUM(B16:B20) -> 20883.87
A22: оплата труда за час занятия на 1го обучающегося | B22: =B21/18/12*1/B9 -> 10.74
A24: 2.Затраты на материальные запасы на 1го ребенка- | D24: =B30 -> 111.74 | G24: =D24 -> 111.74
A25: Стоимость оборудования | B25: =B10 -> 144810
A26: количество месяцев использования( 12,24,36) | B26: 36
A28: Стоимость использования оборудования в месяц в рублях | B28: =B25/36 -> 4022.50
A29: Затраты на 1занятие | B29: =B28/B7 -> 1005.63
A30: Затраты на 1го уч-ся | B30: =B29/B9 -> 111.74
A31: 3. Объем накладных затрат 1 ребенка - руб.
A32: Расчет накладных затрат
A33: прогноз затрат на АУП
A34: Прогноз затрат общехозяйственного назнач. | G34: =B41 -> 20.56
A35: Прогноз суммы начисленной амортизации имущества общехоз-го назнач.
A36: Прогноз ФОТ основного персонала | G36: =G15 -> 10.74
A37: Коэффициент накладных затрат 5=(1+2+3)/4 | G37: =(G33+G34+G35)/G36 -> 1.91
A38: Затраты на основн персонал, | G38: =G36 -> 10.74
A39: Итого накладные затраты (в час на 1 реб) | G39: =G34 -> 20.56
A41: 3.Затраты общехозяйственного назначения всего- | B41: =B43 -> 20.56 | G41: =B41 -> 20.56
A43: всего затраты | B43: =B52+B53+B77 -> 20.56
A44: а, оплата труда обслуживающего персонала
A45: оклад | B45: 12792
A46: недельная нагрузка в часах | B46: 40
A47: количество недель | B47: 4
A48: количество часов | B48: 1
A49: количество детей | B49: =B9 -> 9
A50: затраты на 1 го уч-ся в рублях | B50: =B45/B46/B47/B48/B49 -> 8.88
A51: начисление на опл. труда 30,2% | B51: =B50*30.2/100 -> 2.68
A52: всего | B52: =B50+B51 -> 11.57
A53: 4. Затраты на коммунальные услуги: | B53: =(B59+B60+B72)/B9 -> 1.33 | G53: =B53 -> 1.33
A54: годовое потребление эл/энерза 2020год квт/час | B54: 65438
A55: кол/во рабочих (учебных)дней в году | B55: 210
A56: кол/во часов работы здания школы | B56: 12
A57: Годовой(средний )тариф за эл/энергию | B57: 7.32
A58: затраты в 1час работы зд.школы.(квт/час) | B58: =B54/B55/B56 -> 25.97
A59: затраты эл/э в 1час работы зд.школы.(в рублях) | B59: =B58/B4*B5*B57 -> 2.42 | G59: =B59 -> 2.42
A60: Вода- | B60: =G71 -> 5.46 | G60: =B60 -> 5.46
A61: норматив на 1го ребенка (куб.м) | G61: 2.4
A62: кол-во рабочих дней | G62: 210
A63: по нормативу на 1 ребенка в год водоснабжение 2,4 куб.м/ 216 учебн.дн=0,011куб.м в день,т.е.11л | G63: =(G61/G62)*1000 -> 11
A64: 1 реб*11л(в день )/12 часов/1000=0,0009 куб.м*35,16 руб.=0,0316руб.*9чел= | G64: =G63/12/1000*35.16*G9 -> 0.30
A65: 2 работника( учительница, уборщ)*11 л/12 час/1000= 0,0018куб.м.*35,16 руб. | G65: =2*11/12/1000*35.16 -> 0.06
A66: На мытье полов 75 л/1000=0,075 куб.м.*35,16 руб. | G66: =75/1000*35.16 -> 2.64
A67: по нормативу на 1 ребенка в год водоотведение 2,2куб.мет/ 216 учебн.дн=0,010куб.м в день,т.е.10л | G67: =2.2/210*1000 -> 10
A68: 1реб*10л(в день) /12часов/1000=0,0008куб.м*28,21ру*9чел | G68: =10/12/1000*28.21*G9 -> 0.21
A69: 2 работника( учительница, уборщ)*10 л/12 час/1000= 0,0016куб.м*28,21 | G69: =2*G67/12/1000*28.21 -> 0.05
G70: =(0.0009+0.0018+0.075)*28.21 -> 2.19
G71: =G64+G65+G66+G68+G69+G70 -> 5.46
A72: отопление (гкал) по факту | B72: =G76 -> 4.09 | G72: 924.8
A73: 924,8Гкал(по факту 2020г)/8 мес(период отопления)= 115,6Гкал в мес. | G73: =G72/8 -> 115.6
A74: 115,6Гкал/ 4396,6кв.м.* 56кв.м= 1,47241Гкал/30 дн/24 ч*1 ч*1999,99руб.= | G74: =G73/G4*G5/30/24*1 -> 0.002
G75: 1999.15 | H75: тариф
G76: =G74*G75 -> 4.09
A77: 5.Материальные затраты - руб. | B77: =G82+G87 -> 7.666666667 | G77: =G82+G87 -> 7.666666667
A78: - Канцелярские товары (для ведения документации) – 1,3 руб. на одного ребенка | G78: 1.3
A79: Стоимость – 1248 руб. | G79: 1248
A80: Срок полезного использования – 8 мес. | G80: 8
A81: Расходы в месяц – 1248/8=156 | G81: =G79/8 -> 156
A82: Затраты на одного ребенка за одно занятие – 156/12(часов в месяц)=13/9(кол-во детей) | G82: =G81/G7/G9 -> 4.333333333
A83: - Моющие средства для уборки помещения – 1,04 руб. на одного ребенка | G83: 1.04
A84: Стоимость – 960 руб. | G84: 960
A85: Срок полезного использования – 8 мес. | G85: 8
A86: Расходы в месяц –960/8=120руб | G86: =G84/G85 -> 120
A87: Затраты на одного ребенка за одно занятие – 120/12(часов в месяц)=10/9(кол-во детей) | G87: =G86/G7/G9 -> 3.333333333
A88: всего на материальные затраты: | C88: 1,444+1,111 | G88: =G82+G87 -> 7.666666667
A89: Расчет стоимости одного занятия на 1 уч-ся:
A90: Расчет цены на оказание платной услуги
A91: Наименование статей затрат
A92: Затраты на оплату труда основного персонала | G92: =G15*G9 -> 96.68
A93: Затраты материальных запасов | G93: =G24*G9 -> 1005.63
A94: Сумма начисленной амортизации оборудования, используемого при оказании платной услуги | G94: 0
A95: Накладные затраты, относимые на платную услугу | G95: =G41*G9 -> 185.06
A96: Итого затрат | G96: =G95+G94+G93+G92 -> 1287.37
A97: Цена на 1 платную услугу на 1 ребенка | G97: =G96/G9 -> 143.04
A98: Цена в месяц на 1 ребенка | G98: =G97*G7 -> 572.16

Sheet Тайны математики
A1: Городская школа №3
A2: "Тайны математики"
A3: Тухватуллина Л.В.
A4: общая площадь школы | B4: 4396.6 | G4: =B4 -> 4396.6
A5: занимаемая площадь | B5: 56 | G5: =B5 -> 56
A6: кол-во занятий в неделю(часы) | B6: 1 | G6: 1
A7: кол-во занятий в месяц(часы) | B7: =B6*4 -> 4 | G7: 4
A8: режим работы (часы) | B8: 12 | G8: 12
A9: кол-во детей | B9: 9 | G9: 9
A10: стоим-сть используемого оборудования в.т.ч | B10: =B11+B12+B13 -> 137630 | G10: 137630
A11: ноутбок,компьютер | B11: 19530 | G11: 19530
A12: интерактивная доска | B12: 51690 | G12: 51690
A13: минилаборатория для нач.шк | B13: 66410
A14: Оплата труда : | B14: =B21 -> 10.74 | G14: =B14 -> 10.74
A15: оклад | B15: 14232.00
A16: за метод.литер. | B16: 100.00
A17: за категорию(первая)( 12%) | B17: =B15*12/100 -> 1707.84
A18: за звание | B18: 0.00
A19: начисление 30,2% | B19: =(B15+B16+B17)*30.2% -> 4844.03
A20: всего | B20: =SUM(B15:B19) -> 20883.87
A21: оплата труда за час занятия на 1го обучающегося | B21: =B20/18/12*1/B9 -> 10.74
A23: 2.Затраты на материальные запасы на 1го ребенка- | D23: =B29 -> 106.20 | G23: =D23 -> 106.20
A24: Стоимость оборудования | B24: =B10 -> 137630
A25: количество месяцев использования( 12,24,36) | B25: 36
A27: Стоимость использования оборудования в месяц в рублях | B27: =B24/36 -> 3823.06
A28: Затраты на 1занятие | B28: =B27/B7 -> 955.76
A29: Затраты на 1го уч-ся | B29: =B28/B9 -> 106.20
A30: 3. Объем накладных затрат 1 ребенка - руб.
A31: Расчет накладных затрат
A32: прогноз затрат на АУП
A33: Прогноз затрат общехозяйственного назнач. | G33: =B40 -> 20.56
A34: Прогноз суммы начисленной амортизации имущества общехоз-го назнач.
A35: Прогноз ФОТ основного персонала | G35: =G14 -> 10.74
A36: Коэффициент накладных затрат 5=(1+2+3)/4 | G36: =(G32+G33+G34)/G35 -> 1.91
A37: Затраты на основн персонал, | G37: =G35 -> 10.74
A38: Итого накладные затраты (в час на 1 реб) | G38: =G33 -> 20.56
A40: 3.Затраты общехозяйственного назначения всего- | B40: =B42 -> 20.56 | G40: =B40 -> 20.56
A42: всего затраты | B42: =B51+B52+B76 -> 20.56
A43: а, оплата труда обслуживающего персонала
A44: оклад | B44: 12792
A45: недельная нагрузка в часах | B45: 40
A46: количество недель | B46: 4
A47: количество часов | B47: 1
A48: количество детей | B48: =B9 -> 9
A49: затраты на 1 го уч-ся в рублях | B49: =B44/B45/B46/B47/B48 -> 8.88
A50: начисление на опл. труда 30,2% | B50: =B49*30.2/100 -> 2.68
A51: всего | B51: =B49+B50 -> 11.57
A52: 4. Затраты на коммунальные услуги: | B52: =(B58+B59+B71)/B9 -> 1.33 | G52: =B52 -> 1.33
A53: годовое потребление эл/энерза 2020год квт/час | B53: 65438
A54: кол/во рабочих (учебных)дней в году | B54: 210
A55: кол/во часов работы здания школы | B55: 12
A56: Годовой(средний )тариф за эл/энергию | B56: 7.32
A57: затраты в 1час работы зд.школы.(квт/час) | B57: =B53/B54/B55 -> 25.97
A58: затраты эл/э в 1час работы зд.школы.(в рублях) | B58: =B57/B4*B5*B56 -> 2.42 | G58: =B58 -> 2.42
A59: Вода- | B59: =G70 -> 5.46 | G59: =B59 -> 5.46
A60: норматив на 1го ребенка (куб.м) | G60: 2.4
A61: кол-во рабочих дней | G61: 210
A62: по нормативу на 1 ребенка в год водоснабжение 2,4 куб.м/ 216 учебн.дн=0,011куб.м в день,т.е.11л | G62: =(G60/G61)*1000 -> 11
A63: 1 реб*11л(в день )/12 часов/1000=0,0009 куб.м*35,16 руб.=0,0316руб.*9чел= | G63: =G62/12/1000*35.16*G9 -> 0.30
A64: 2 работника( учительница, уборщ)*11 л/12 час/1000= 0,0018куб.м.*35,16 руб. | G64: =2*11/12/1000*35.16 -> 0.06
A65: На мытье полов 75 л/1000=0,075 куб.м.*35,16 руб. | G65: =75/1000*35.16 -> 2.64
A66: по нормативу на 1 ребенка в год водоотведение 2,2куб.мет/ 216 учебн.дн=0,010куб.м в день,т.е.10л | G66: =2.2/210*1000 -> 10
A67: 1реб*10л(в день) /12часов/1000=0,0008куб.м*28,21ру*9чел | G67: =10/12/1000*28.21*G9 -> 0.21
A68: 2 работника( учительница, уборщ)*10 л/12 час/1000= 0,0016куб.м*28,21 | G68: =2*G66/12/1000*28.21 -> 0.05
G69: =(0.0009+0.0018+0.075)*28.21 -> 2.19
G70: =G63+G64+G65+G67+G68+G69 -> 5.46
A71: отопление (гкал) по факту | B71: =G75 -> 4.09 | G71: 924.8
A72: 924,8Гкал(по факту 2020г)/8 мес(период отопления)= 115,6Гкал в мес. | G72: =G71/8 -> 115.6
A73: 115,6Гкал/ 4396,6кв.м.* 56кв.м= 1,47241Гкал/30 дн/24 ч*1 ч*1999,99руб.= | G73: =G72/G4*G5/30/24*1 -> 0.002
G74: 1999.15 | H74: тариф
G75: =G73*G74 -> 4.09
A76: 5.Материальные затраты - руб. | B76: =G81+G86 -> 7.666666667 | G76: =G81+G86 -> 7.666666667
A77: - Канцелярские товары (для ведения документации) – 1,3 руб. на одного ребенка | G77: 1.3
A78: Стоимость – 1248 руб. | G78: 1248
A79: Срок полезного использования – 8 мес. | G79: 8
A80: Расходы в месяц – 1248/8=156 | G80: =G78/8 -> 156
A81: Затраты на одного ребенка за одно занятие – 156/12(часов в месяц)=13/9(кол-во детей) | G81: =G80/G7/G9 -> 4.333333333
A82: - Моющие средства для уборки помещения – 1,04 руб. на одного ребенка | G82: 1.04
A83: Стоимость – 960 руб. | G83: 960
A84: Срок полезного использования – 8 мес. | G84: 8
A85: Расходы в месяц –960/8=120руб | G85: =G83/G84 -> 120
A86: Затраты на одного ребенка за одно занятие – 120/12(часов в месяц)=10/9(кол-во детей) | G86: =G85/G7/G9 -> 3.333333333
A87: всего на материальные затраты: | C87: 1,444+1,111 | G87: =G81+G86 -> 7.666666667
A88: Расчет стоимости одного занятия на 1 уч-ся:
A89: Расчет цены на оказание платной услуги
A90: Наименование статей затрат
A91: Затраты на оплату труда основного персонала | G91: =G14*G9 -> 96.68
A92: Затраты материальных запасов | G92: =G23*G9 -> 955.76
A93: Сумма начисленной амортизации оборудования, используемого при оказании платной услуги | G93: 0
A94: Накладные затраты, относимые на платную услугу | G94: =G40*G9 -> 185.06
A95: Итого затрат | G95: =G94+G93+G92+G91 -> 1237.51
A96: Цена на 1 платную услугу на 1 ребенка | G96: =G95/G9 -> 137.50
A97: Цена в месяц на 1 ребенка | G97: =G96*G7 -> 550.00

Sheet Мир вокруг нас
A2: Городская школа №3
A3: "Мир вокруг нас"
A4: Садыкова Л.Т.
A5: общая площадь школы | B5: 4396.6 | G5: =B5 -> 4396.6
A6: занимаемая площадь | B6: 56 | G6: =B6 -> 56
A7: кол-во занятий в неделю(часы) | B7: 1 | G7: 1
A8: кол-во занятий в месяц(часы) | B8: =B7*4 -> 4 | G8: 4
A9: режим работы (часы) | B9: 12 | G9: 12
A10: кол-во детей | B10: 9 | G10: 9
A11: стоим-сть используемого оборудования в.т.ч | B11: =B12+B13+B14+B15 -> 153892 | G11: 153892
A12: ноутбок,компьютер | B12: 23530 | G12: 23530
A13: принтер | B13: 12292 | G13: 12292
A14: интерактивная доска | B14: 51660 | G14: 51660
A15: минилаборатория для нач.шк | B15: 66410
A16: Оплата труда : | B16: =B23 -> 10.74 | G16: =B16 -> 10.74
A17: оклад | B17: 14232.00
A18: за метод.литер. | B18: 100.00
A19: за категорию(первая)( 12%) | B19: =B17*12/100 -> 1707.84
A20: за звание | B20: 0.00
A21: начисление 30,2% | B21: =(B17+B18+B19)*30.2% -> 4844.03
A22: всего | B22: =SUM(B17:B21) -> 20883.87
A23: оплата труда за час занятия на 1го обучающегося | B23: =B22/18/12*1/B10 -> 10.74
A25: 2.Затраты на материальные запасы на 1го ребенка- | D25: =B31 -> 118.74 | G25: =D25 -> 118.74
A26: Стоимость оборудования | B26: =B11 -> 153892
A27: количество месяцев использования( 12,24,36) | B27: 36
A29: Стоимость использования оборудования в месяц в рублях | B29: =B26/36 -> 4274.78
A30: Затраты на 1занятие | B30: =B29/B8 -> 1068.69
A31: Затраты на 1го уч-ся | B31: =B30/B10 -> 118.74
A32: 3. Объем накладных затрат 1 ребенка - руб.
A33: Расчет накладных затрат
A34: прогноз затрат на АУП
A35: Прогноз затрат общехозяйственного назнач. | G35: =B42 -> 20.56
A36: Прогноз суммы начисленной амортизации имущества общехоз-го назнач.
A37: Прогноз ФОТ основного персонала | G37: =G16 -> 10.74
A38: Коэффициент накладных затрат 5=(1+2+3)/4 | G38: =(G34+G35+G36)/G37 -> 1.91
A39: Затраты на основн персонал, | G39: =G37 -> 10.74
A40: Итого накладные затраты (в час на 1 реб) | G40: =G35 -> 20.56
A42: 3.Затраты общехозяйственного назначения всего- | B42: =B44 -> 20.56 | G42: =B42 -> 20.56
A44: всего затраты | B44: =B53+B54+B78 -> 20.56
A45: а, оплата труда обслуживающего персонала
A46: оклад | B46: 12792
A47: недельная нагрузка в часах | B47: 40
A48: количество недель | B48: 4
A49: количество часов | B49: 1
A50: количество детей | B50: =B10 -> 9
A51: затраты на 1 го уч-ся в рублях | B51: =B46/B47/B48/B49/B50 -> 8.88
A52: начисление на опл. труда 30,2% | B52: =B51*30.2/100 -> 2.68
A53: всего | B53: =B51+B52 -> 11.57
A54: 4. Затраты на коммунальные услуги: | B54: =(B60+B61+B73)/B10 -> 1.33 | G54: =B54 -> 1.33
A55: годовое потребление эл/энерза 2020год квт/час | B55: 65438
A56: кол/во рабочих (учебных)дней в году | B56: 210
A57: кол/во часов работы здания школы | B57: 12
A58: Годовой(средний )тариф за эл/энергию | B58: 7.32
A59: затраты в 1час работы зд.школы.(квт/час) | B59: =B55/B56/B57 -> 25.97
A60: затраты эл/э в 1час работы зд.школы.(в рублях) | B60: =B59/B5*B6*B58 -> 2.42 | G60: =B60 -> 2.42
A61: Вода- | B61: =G72 -> 5.46 | G61: =B61 -> 5.46
A62: норматив на 1го ребенка (куб.м) | G62: 2.4
A63: кол-во рабочих дней | G63: 210
A64: по нормативу на 1 ребенка в год водоснабжение 2,4 куб.м/ 216 учебн.дн=0,011куб.м в день,т.е.11л | G64: =(G62/G63)*1000 -> 11
A65: 1 реб*11л(в день )/12 часов/1000=0,0009 куб.м*35,16 руб.=0,0316руб.*9чел= | G65: =G64/12/1000*35.16*G10 -> 0.30
A66: 2 работника( учительница, уборщ)*11 л/12 час/1000= 0,0018куб.м.*35,16 руб. | G66: =2*11/12/1000*35.16 -> 0.06
A67: На мытье полов 75 л/1000=0,075 куб.м.*35,16 руб. | G67: =75/1000*35.16 -> 2.64
A68: по нормативу на 1 ребенка в год водоотведение 2,2куб.мет/ 216 учебн.дн=0,010куб.м в день,т.е.10л | G68: =2.2/210*1000 -> 10
A69: 1реб*10л(в день) /12часов/1000=0,0008куб.м*28,21ру*9чел | G69: =10/12/1000*28.21*G10 -> 0.21
A70: 2 работника( учительница, уборщ)*10 л/12 час/1000= 0,0016куб.м*28,21 | G70: =2*G68/12/1000*28.21 -> 0.05
G71: =(0.0009+0.0018+0.075)*28.21 -> 2.19
G72: =G65+G66+G67+G69+G70+G71 -> 5.46
A73: отопление (гкал) по факту | B73: =G77 -> 4.09 | G73: 924.8
A74: 924,8Гкал(по факту 2020г)/8 мес(период отопления)= 115,6Гкал в мес. | G74: =G73/8 -> 115.6
A75: 115,6Гкал/ 4396,6кв.м.* 56кв.м= 1,47241Гкал/30 дн/24 ч*1 ч*1999,99руб.= | G75: =G74/G5*G6/30/24*1 -> 0.002
G76: 1999.15
G77: =G75*G76 -> 4.09
A78: 5.Материальные затраты - руб. | B78: =G83+G88 -> 7.666666667 | G78: =G83+G88 -> 7.666666667
A79: - Канцелярские товары (для ведения документации) – 1,3 руб. на одного ребенка | G79: 1.3
A80: Стоимость – 1248 руб. | G80: 1248
A81: Срок полезного использования – 8 мес. | G81: 8
A82: Расходы в месяц – 1248/8=156 | G82: =G80/8 -> 156
A83: Затраты на одного ребенка за одно занятие – 156/12(часов в месяц)=13/9(кол-во детей) | G83: =G82/G8/G10 -> 4.333333333
A84: - Моющие средства для уборки помещения – 1,04 руб. на одного ребенка | G84: 1.04
A85: Стоимость – 960 руб. | G85: 960
A86: Срок полезного использования – 8 мес. | G86: 8
A87: Расходы в месяц –960/8=120руб | G87: =G85/G86 -> 120
A88: Затраты на одного ребенка за одно занятие – 120/12(часов в месяц)=10/9(кол-во детей) | G88: =G87/G8/G10 -> 3.333333333
A89: всего на материальные затраты: | C89: 1,444+1,111 | G89: =G83+G88 -> 7.666666667
A90: Расчет стоимости одного занятия на 1 уч-ся:
A91: Расчет цены на оказание платной услуги
A92: Наименование статей затрат
A93: Затраты на оплату труда основного персонала | G93: =G16*G10 -> 96.68
A94: Затраты материальных запасов | G94: =G25*G10 -> 1068.69
A95: Сумма начисленной амортизации оборудования, используемого при оказании платной услуги | G95: 0
A96: Накладные затраты, относимые на платную услугу | G96: =G42*G10 -> 185.06
A97: Итого затрат | G97: =G96+G95+G94+G93 -> 1350.44
A98: Цена на 1 платную услугу на 1 ребенка | G98: =G97/G10 -> 150.05
A99: Цена в месяц на 1 ребенка | G99: =G98*G8 -> 600.20

Sheet ритмика
A1: Городская школа №3
A2: "Ритмика"
A3: Ефремова О.В.
A4: общая площадь школы | B4: 4396.6 | G4: =B4 -> 4396.6
A5: занимаемая площадь | B5: 56 | G5: =B5 -> 56
A6: кол-во занятий в неделю(часы) | B6: 1 | G6: 1
A7: кол-во занятий в месяц(часы) | B7: =B6*4 -> 4 | G7: 4
A8: режим работы (часы) | B8: 12 | G8: 12
A9: кол-во детей | B9: 9 | G9: 9
A10: стоим-сть используемого оборудования в.т.ч | B10: =B11+B12+B13 -> 123317 | G10: 123317
A11: ноутбок,компьютер | B11: 19800 | G11: 19800
A12: акустическая аппаратура | B12: 88417 | G12: 88417
A13: муз.центр | B13: 15100 | G13: 15100
A14: Оплата труда : | B14: =B21 -> 11.89 | G14: 11.89
A15: оклад | B15: 14232.00
A16: за метод.литер. | B16: 100.00
A17: за категорию(первая)( 24%) | B17: =B15*24/100 -> 3415.68
A18: за звание | B18: 0.00
A19: начисление 30,2% | B19: =(B15+B16+B17)*30.2% -> 5359.80
A20: всего | B20: =SUM(B15:B19) -> 23107.48
A21: оплата труда за час занятия на 1го обучающегося | B21: =B20/18/12*1/B9 -> 11.89
A23: 2.Затраты на материальные запасы на 1го ребенка- | D23: =B29 -> 95.15 | G23: =D23 -> 95.15
A24: Стоимость оборудования | B24: =B10 -> 123317
A25: количество месяцев использования( 12,24,36) | B25: 36
A27: Стоимость использования оборудования в месяц в рублях | B27: =B24/36 -> 3425.47
A28: Затраты на 1занятие | B28: =B27/B7 -> 856.37
A29: Затраты на 1го уч-ся | B29: =B28/B9 -> 95.15
A30: 3. Объем накладных затрат 1 ребенка - руб.
A31: Расчет накладных затрат
A32: прогноз затрат на АУП
A33: Прогноз затрат общехозяйственного назнач. | G33: =B40 -> 20.56
A34: Прогноз суммы начисленной амортизации имущества общехоз-го назнач.
A35: Прогноз ФОТ основного персонала | G35: =G14 -> 11.89
A36: Коэффициент накладных затрат 5=(1+2+3)/4 | G36: =(G32+G33+G34)/G35 -> 1.73
A37: Затраты на основн персонал, | G37: =G35 -> 11.89
A38: Итого накладные затраты (в час на 1 реб) | G38: =G33 -> 20.56
A40: 3.Затраты общехозяйственного назначения всего- | B40: =B42 -> 20.56 | G40: =B40 -> 20.56
A42: всего затраты | B42: =B51+B52+B76 -> 20.56
A43: а, оплата труда обслуживающего персонала
A44: оклад | B44: 12792
A45: недельная нагрузка в часах | B45: 40
A46: количество недель | B46: 4
A47: количество часов | B47: 1
A48: количество детей | B48: =B9 -> 9
A49: затраты на 1 го уч-ся в рублях | B49: =B44/B45/B46/B47/B48 -> 8.88
A50: начисление на опл. труда 30,2% | B50: =B49*30.2/100 -> 2.68
A51: всего | B51: =B49+B50 -> 11.57
A52: 4. Затраты на коммунальные услуги: | B52: =(B58+B59+B71)/B9 -> 1.33 | G52: =B52 -> 1.33
A53: годовое потребление эл/энерза 2020год квт/час | B53: 65438
A54: кол/во рабочих (учебных)дней в году | B54: 210
A55: кол/во часов работы здания школы | B55: 12
A56: Годовой(средний )тариф за эл/энергию | B56: 7.32
A57: затраты в 1час работы зд.школы.(квт/час) | B57: =B53/B54/B55 -> 25.97
A58: затраты эл/э в 1час работы зд.школы.(в рублях) | B58: =B57/B4*B5*B56 -> 2.42 | G58: =B58 -> 2.42
A59: Вода- | B59: =G70 -> 5.46 | G59: =B59 -> 5.46
A60: норматив на 1го ребенка (куб.м) | G60: 2.4
A61: кол-во рабочих дней | G61: 210
A62: по нормативу на 1 ребенка в год водоснабжение 2,4 куб.м/ 216 учебн.дн=0,011куб.м в день,т.е.11л | G62: =(G60/G61)*1000 -> 11
A63: 1 реб*11л(в день )/12 часов/1000=0,0009 куб.м*35,16 руб.=0,0316руб.*18чел= | G63: =G62/12/1000*35.16*G9 -> 0.30
A64: 2 работника( учительница, уборщ)*11 л/12 час/1000= 0,0018куб.м.*35,16 руб. | G64: =2*11/12/1000*35.16 -> 0.06
A65: На мытье полов 75 л/1000=0,075 куб.м.*35,16 руб. | G65: =75/1000*35.16 -> 2.64
A66: по нормативу на 1 ребенка в год водоотведение 2,2куб.мет/ 216 учебн.дн=0,010куб.м в день,т.е.10л | G66: =2.2/210*1000 -> 10
A67: 1реб*10л(в день) /12часов/1000=0,0008куб.м*28,21ру*18чел | G67: =10/12/1000*28.21*G9 -> 0.21
A68: 2 работника( учительница, уборщ)*10 л/12 час/1000= 0,0016куб.м*28,21 | G68: =2*G66/12/1000*28.21 -> 0.05
G69: =(0.0009+0.0018+0.075)*28.21 -> 2.19
G70: =G63+G64+G65+G67+G68+G69 -> 5.46
A71: отопление (гкал) по факту | B71: =G75 -> 4.09 | G71: 924.8
A72: 924,8Гкал(по факту 2020г)/8 мес(период отопления)= 115,6Гкал в мес. | G72: =G71/8 -> 115.6
A73: 115,6Гкал/ 4396,6кв.м.* 56кв.м= 1,47241Гкал/30 дн/24 ч*1 ч*1999,99руб.= | G73: =G72/G4*G5/30/24*1 -> 0.002
G74: 1999.15 | H74: тариф
G75: =G73*G74 -> 4.09
A76: 5.Материальные затраты - руб. | B76: =G81+G86 -> 7.666666667 | G76: =G81+G86 -> 7.666666667
A77: - Канцелярские товары (для ведения документации) – 1,3 руб. на одного ребенка | G77: 1.3
A78: Стоимость – 1248 руб. | G78: 1248
A79: Срок полезного использования – 8 мес. | G79: 8
A80: Расходы в месяц – 1248/8=156 | G80: =G78/8 -> 156
A81: Затраты на одного ребенка за одно занятие – 156/4(часов в месяц)=39/18(кол-во детей) | G81: =G80/G7/G9 -> 4.333333333
A82: - Моющие средства для уборки помещения – 1,04 руб. на одного ребенка | G82: 1.04
A83: Стоимость – 960 руб. | G83: 960
A84: Срок полезного использования – 8 мес. | G84: 8
A85: Расходы в месяц –960/8=120руб | G85: =G83/G84 -> 120
A86: Затраты на одного ребенка за одно занятие – 120/4(часов в месяц)=30/18(кол-во детей) | G86: =G85/G7/G9 -> 3.333333333
A87: всего на материальные затраты: | C87: 2,166+1,666 | G87: =G81+G86 -> 7.666666667
A88: Расчет стоимости одного занятия на 1 уч-ся:
A89: Расчет цены на оказание платной услуги
A90: Наименование статей затрат
A91: Затраты на оплату труда основного персонала | G91: =G14*G9 -> 106.98
A92: Затраты материальных запасов | G92: =G23*G9 -> 856.37
A93: Сумма начисленной амортизации оборудования, используемого при оказании платной услуги | G93: 0
A94: Накладные затраты, относимые на платную услугу | G94: =G40*G9 -> 185.06
A95: Итого затрат | G95: =G94+G93+G92+G91 -> 1148.41
A96: Цена на 1 платную услугу на 1 ребенка | G96: =G95/G9 -> 127.60
A97: Цена в месяц на 1 ребенка | G97: =G96*G7 -> 510.40

Sheet Школа будущего первоклассника
A3: Городская школа №3
A4: школа будущегопервоклассника
A5: Хамадиева Г.М.,Садыкова И.И.
A6: общая площадь школы | B6: 4396.6 | G6: =B6 -> 4396.6
A7: занимаемая площадь | B7: 56 | G7: =B7 -> 56
A8: кол-во занятий в неделю(часы) | B8: 3 | G8: 3
A9: кол-во занятий в месяц(часы) | B9: =B8*4 -> 12 | G9: 12
A10: режим работы (часы) | B10: 12 | G10: 12
A11: кол-во детей | B11: 15 | G11: 15
A12: стоим-сть используемого оборудования в.т.ч | B12: =B13+B14+B15 -> 222119 | G12: 222119
A13: ноутбок,компьютер | B13: 35678 | G13: 35678
A14: интерактивная доска | B14: 59856 | G14: 59856
A15: минилаборатория нач.кл | B15: 126585 | G15: 126585
A16: Оплата труда : | B16: =B23 -> 6.45 | G16: 6.45
A17: оклад | B17: 14232.00
A18: за метод.литер. | B18: 100.00
A19: за категорию(первая)( 12%) | B19: =B17*12/100 -> 1707.84
A20: за звание | B20: 0.00
A21: начисление 30,2% | B21: =(B17+B18+B19)*30.2% -> 4844.03
A22: всего | B22: =SUM(B17:B21) -> 20883.87
A23: оплата труда за час занятия на 1го обучающегося | B23: =B22/18/12*1/B11 -> 6.45
A25: 2.Затраты на материальные запасы на 1го ребенка- | D25: =B31 -> 34.28 | G25: =D25 -> 34.28
A26: Стоимость оборудования | B26: =B12 -> 222119
A27: количество месяцев использования( 12,24,36) | B27: 36
A29: Стоимость использования оборудования в месяц в рублях | B29: =B26/36 -> 6169.97
A30: Затраты на 1занятие | B30: =B29/B9 -> 514.16
A31: Затраты на 1го уч-ся | B31: =B30/B11 -> 34.28
A32: 3. Объем накладных затрат 1 ребенка - руб.
A33: Расчет накладных затрат
A34: прогноз затрат на АУП
A35: Прогноз затрат общехозяйственного назнач. | G35: =B42 -> 9.29
A36: Прогноз суммы начисленной амортизации имущества общехоз-го назнач.
A37: Прогноз ФОТ основного персонала | G37: =G16 -> 6.45
A38: Коэффициент накладных затрат 5=(1+2+3)/4 | G38: =(G34+G35+G36)/G37 -> 1.44
A39: Затраты на основн персонал, | G39: =G37 -> 6.45
A40: Итого накладные затраты (в час на 1 реб) | G40: =G35 -> 9.29
A42: 3.Затраты общехозяйственного назначения всего- | B42: =B44 -> 9.29 | G42: =B42 -> 9.29
A44: всего затраты | B44: =B53+B54+B78 -> 9.29
A45: а, оплата труда обслуживающего персонала
A46: оклад | B46: 12792
A47: недельная нагрузка в часах | B47: 40
A48: количество недель | B48: 4
A49: количество часов | B49: 1
A50: количество детей | B50: =B11 -> 15
A51: затраты на 1 го уч-ся в рублях | B51: =B46/B47/B48/B49/B50 -> 5.33
A52: начисление на опл. труда 30,2% | B52: =B51*30.2/100 -> 1.61
A53: всего | B53: =B51+B52 -> 6.94
A54: 4. Затраты на коммунальные услуги: | B54: =(B60+B61+B73)/B11 -> 0.82 | G54: =B54 -> 0.82
A55: годовое потребление эл/энерза 2020год квт/час | B55: 65438
A56: кол/во рабочих (учебных)дней в году | B56: 210
A57: кол/во часов работы здания школы | B57: 12
A58: Годовой(средний )тариф за эл/энергию | B58: 7.32
A59: затраты в 1час работы зд.школы.(квт/час) | B59: =B55/B56/B57 -> 25.97
A60: затраты эл/э в 1час работы зд.школы.(в рублях) | B60: =B59/B6*B7*B58 -> 2.42 | G60: =B60 -> 2.42
A61: Вода- | B61: =G72 -> 5.80 | G61: =B61 -> 5.80
A62: норматив на 1го ребенка (куб.м) | G62: 2.4
A63: кол-во рабочих дней | G63: 210
A64: по нормативу на 1 ребенка в год водоснабжение 2,4 куб.м/ 216 учебн.дн=0,011куб.м в день,т.е.11л | G64: =(G62/G63)*1000 -> 11
A65: 1 реб*11л(в день )/12 часов/1000=0,0009 куб.м*35,16 руб.=0,0316руб.*22чел= | G65: =G64/12/1000*35.16*G11 -> 0.50
A66: 2 работника( учительница, уборщ)*11 л/12 час/1000= 0,0018куб.м.*35,16 руб. | G66: =2*11/12/1000*35.16 -> 0.06
A67: На мытье полов 75 л/1000=0,075 куб.м.*35,16 руб. | G67: =75/1000*35.16 -> 2.64
A68: по нормативу на 1 ребенка в год водоотведение 2,2куб.мет/ 216 учебн.дн=0,010куб.м в день,т.е.10л | G68: =2.2/210*1000 -> 10
A69: 1реб*10л(в день) /12часов/1000=0,0008куб.м*28,21ру*22чел | G69: =10/12/1000*28.21*G11 -> 0.35
A70: 2 работника( учительница, уборщ)*10 л/12 час/1000= 0,0016куб.м*28,21 | G70: =2*G68/12/1000*28.21 -> 0.05
G71: =(0.0009+0.0018+0.075)*28.21 -> 2.19
G72: =G65+G66+G67+G69+G70+G71 -> 5.80
A73: отопление (гкал) по факту | B73: =G77 -> 4.09 | G73: 924.8
A74: 924,8Гкал(по факту 2020г)/8 мес(период отопления)= 115,6Гкал в мес. | G74: =G73/8 -> 115.6
A75: 115,6Гкал/ 4396,6кв.м.* 56кв.м= 1,47241Гкал/30 дн/24 ч*1 ч*1999,99руб.= | G75: =G74/G6*G7/30/24*1 -> 0.002
G76: 1999.15
G77: =G75*G76 -> 4.09
A78: 5.Материальные затраты - руб. | B78: =G83+G88 -> 1.533333333 | G78: =G83+G88 -> 1.533333333
A79: - Канцелярские товары (для ведения документации) – 1,3 руб. на одного ребенка | G79: 1.3
A80: Стоимость – 1248 руб. | G80: 1248
A81: Срок полезного использования – 8 мес. | G81: 8
A82: Расходы в месяц – 1248/8=156 | G82: =G80/8 -> 156
A83: Затраты на одного ребенка за одно занятие – 156/12(часов в месяц)=13/22(кол-во детей) | G83: =G82/G9/G11 -> 0.8666666667
A84: - Моющие средства для уборки помещения – 1,04 руб. на одного ребенка | G84: 1.04
A85: Стоимость – 960 руб. | G85: 960
A86: Срок полезного использования – 8 мес. | G86: 8
A87: Расходы в месяц –960/8=120руб | G87: =G85/G86 -> 120
A88: Затраты на одного ребенка за одно занятие – 120/12(часов в месяц)=10/22(кол-во детей) | G88: =G87/G9/G11 -> 0.6666666667
A89: всего на материальные затраты: | C89: 0,59091+0,45455 | G89: =G83+G88 -> 1.533333333
A90: Расчет стоимости одного занятия на 1 уч-ся:
A91: Расчет цены на оказание платной услуги
A92: Наименование статей затрат
A93: Затраты на оплату труда основного персонала | G93: =G16*G11 -> 96.68
A94: Затраты материальных запасов | G94: =G25*G11 -> 514.16
A95: Сумма начисленной амортизации оборудования, используемого при оказании платной услуги | G95: 0
A96: Накладные затраты, относимые на платную услугу | G96: =G42*G11 -> 139.40
A97: Итого затрат | G97: =G96+G95+G94+G93 -> 750.25
A98: Цена на 1 платную услугу на 1 ребенка | G98: =G97/G11 -> 50.02
A99: Цена в месяц на 1 ребенка | G99: =G98*G9 -> 600.20

Sheet Каллиграфия
A3: Городская школа №3
A4: Каллиграфия
A5: Лукьянова М.А.
A6: общая площадь школы | B6: 4396.6 | G6: =B6 -> 4396.6
A7: занимаемая площадь | B7: 56 | G7: =B7 -> 56
A8: кол-во занятий в неделю(часы) | B8: 1 | G8: 1
A9: кол-во занятий в месяц(часы) | B9: =B8*4 -> 4 | G9: 4
A10: режим работы (часы) | B10: 12 | G10: 12
A11: кол-во детей | B11: 9 | G11: 9
A12: стоим-сть используемого оборудования в.т.ч | B12: =B13+B14+B16+B15 -> 150720 | G12: 150720
A13: ноутбок,компьютер | B13: 20095 | G13: 20095
A14: интерактивный комплект | B14: 95500 | G14: 95500
A15: документ камера | B15: 24775 | G15: 24775
A16: принтер | B16: 10350 | G16: 10350
A17: Оплата труда : | B17: =B24 -> 10.74 | G17: 10.74
A18: оклад | B18: 14232.00
A19: за метод.литер. | B19: 100.00
A20: за категорию(первая)( 12%) | B20: =B18*12/100 -> 1707.84
A21: за звание | B21: 0.00
A22: начисление 30,2% | B22: =(B18+B19+B20)*30.2% -> 4844.03
A23: всего | B23: =SUM(B18:B22) -> 20883.87
A24: оплата труда за час занятия на 1го обучающегося | B24: =B23/18/12*1/B11 -> 10.74
A26: 2.Затраты на материальные запасы на 1го ребенка- | D26: =B32 -> 116.30 | G26: =D26 -> 116.30
A27: Стоимость оборудования | B27: =B12 -> 150720
A28: количество месяцев использования( 12,24,36) | B28: 36
A30: Стоимость использования оборудования в месяц в рублях | B30: =B27/36 -> 4186.67
A31: Затраты на 1занятие | B31: =B30/B9 -> 1046.67
A32: Затраты на 1го уч-ся | B32: =B31/B11 -> 116.30
A33: 3. Объем накладных затрат 1 ребенка - руб.
A34: Расчет накладных затрат
A35: прогноз затрат на АУП
A36: Прогноз затрат общехозяйственного назнач. | G36: =B43 -> 20.56
A37: Прогноз суммы начисленной амортизации имущества общехоз-го назнач.
A38: Прогноз ФОТ основного персонала | G38: =G17 -> 10.74
A39: Коэффициент накладных затрат 5=(1+2+3)/4 | G39: =(G35+G36+G37)/G38 -> 1.91
A40: Затраты на основн персонал, | G40: =G38 -> 10.74
A41: Итого накладные затраты (в час на 1 реб) | G41: =G36 -> 20.56
A43: 3.Затраты общехозяйственного назначения всего- | B43: =B45 -> 20.56 | G43: =B43 -> 20.56
A45: всего затраты | B45: =B54+B55+B79 -> 20.56
A46: а, оплата труда обслуживающего персонала
A47: оклад | B47: 12792
A48: недельная нагрузка в часах | B48: 40
A49: количество недель | B49: 4
A50: количество часов | B50: 1
A51: количество детей | B51: =B11 -> 9
A52: затраты на 1 го уч-ся в рублях | B52: =B47/B48/B49/B50/B51 -> 8.88
A53: начисление на опл. труда 30,2% | B53: =B52*30.2/100 -> 2.68
A54: всего | B54: =B52+B53 -> 11.57
A55: 4. Затраты на коммунальные услуги: | B55: =(B61+B62+B74)/B11 -> 1.33 | G55: =B55 -> 1.33
A56: годовое потребление эл/энерза 2020год квт/час | B56: 65438
A57: кол/во рабочих (учебных)дней в году | B57: 210
A58: кол/во часов работы здания школы | B58: 12
A59: Годовой(средний )тариф за эл/энергию | B59: 7.32
A60: затраты в 1час работы зд.школы.(квт/час) | B60: =B56/B57/B58 -> 25.97
A61: затраты эл/э в 1час работы зд.школы.(в рублях) | B61: =B60/B6*B7*B59 -> 2.42 | G61: =B61 -> 2.42
A62: Вода- | B62: =G73 -> 5.46 | G62: =B62 -> 5.46
A63: норматив на 1го ребенка (куб.м) | G63: 2.4
A64: кол-во рабочих дней | G64: 210
A65: по нормативу на 1 ребенка в год водоснабжение 2,4 куб.м/ 216 учебн.дн=0,011куб.м в день,т.е.11л | G65: =(G63/G64)*1000 -> 11
A66: 1 реб*11л(в день )/12 часов/1000=0,0009 куб.м*35,16 руб.=0,0316руб.*9чел= | G66: =G65/12/1000*35.16*G11 -> 0.30
A67: 2 работника( учительница, уборщ)*11 л/12 час/1000= 0,0018куб.м.*35,16 руб. | G67: =2*11/12/1000*35.16 -> 0.06
A68: На мытье полов 75 л/1000=0,075 куб.м.*35,16 руб. | G68: =75/1000*35.16 -> 2.64
A69: по нормативу на 1 ребенка в год водоотведение 2,2куб.мет/ 216 учебн.дн=0,010куб.м в день,т.е.10л | G69: =2.2/210*1000 -> 10
A70: 1реб*10л(в день) /12часов/1000=0,0008куб.м*28,21ру*9чел | G70: =10/12/1000*28.21*G11 -> 0.21
A71: 2 работника( учительница, уборщ)*10 л/12 час/1000= 0,0016куб.м*28,21 | G71: =2*G69/12/1000*28.21 -> 0.05
G72: =(0.0009+0.0018+0.075)*28.21 -> 2.19
G73: =G66+G67+G68+G70+G71+G72 -> 5.46
A74: отопление (гкал) по факту | B74: =G78 -> 4.09 | G74: 924.8
A75: 924,8Гкал(по факту 2020г)/8 мес(период отопления)= 115,6Гкал в мес. | G75: =G74/8 -> 115.6
A76: 115,6Гкал/ 4396,6кв.м.* 56кв.м= 1,47241Гкал/30 дн/24 ч*1 ч*1999,99руб.= | G76: =G75/G6*G7/30/24*1 -> 0.002
G77: 1999.15 | H77: тариф
G78: =G76*G77 -> 4.09
A79: 5.Материальные затраты - руб. | B79: =G84+G89 -> 7.666666667 | G79: =G84+G89 -> 7.666666667
A80: - Канцелярские товары (для ведения документации) – 1,3 руб. на одного ребенка | G80: 1.3
A81: Стоимость – 1248 руб. | G81: 1248
A82: Срок полезного использования – 8 мес. | G82: 8
A83: Расходы в месяц – 1248/8=156 | G83: =G81/8 -> 156
A84: Затраты на одного ребенка за одно занятие – 156/12(часов в месяц)=13/9(кол-во детей) | G84: =G83/G9/G11 -> 4.333333333
A85: - Моющие средства для уборки помещения – 1,04 руб. на одного ребенка | G85: 1.04
A86: Стоимость – 960 руб. | G86: 960
A87: Срок полезного использования – 8 мес. | G87: 8
A88: Расходы в месяц –960/8=120руб | G88: =G86/G87 -> 120
A89: Затраты на одного ребенка за одно занятие – 120/12(часов в месяц)=10/9(кол-во детей) | G89: =G88/G9/G11 -> 3.333333333
A90: всего на материальные затраты: | C90: 1,444+1,111 | G90: =G84+G89 -> 7.666666667
A91: Расчет стоимости одного занятия на 1 уч-ся:
A92: Расчет цены на оказание платной услуги
A93: Наименование статей затрат
A94: Затраты на оплату труда основного персонала | G94: =G17*G11 -> 96.68
A95: Затраты материальных запасов | G95: =G26*G11 -> 1046.67
A96: Сумма начисленной амортизации оборудования, используемого при оказании платной услуги | G96: 0
A97: Накладные затраты, относимые на платную услугу | G97: =G43*G11 -> 185.06
A98: Итого затрат | G98: =G97+G96+G95+G94 -> 1328.41
A99: Цена на 1 платную услугу на 1 ребенка | G99: =G98/G11 -> 147.60
A100: Цена в месяц на 1 ребенка | G100: =G99*G9 -> 590.40

Sheet Мой путь
A3: Городская школа №3
A4: Мой путь. Выбор будущей профессии
A5: Гумерова В.Р.
A6: общая площадь школы | B6: 4396.6 | G6: =B6 -> 4396.6
A7: занимаемая площадь | B7: 56 | G7: =B7 -> 56
A8: кол-во занятий в неделю(часы) | B8: 1 | G8: 1
A9: кол-во занятий в месяц(часы) | B9: =B8*4 -> 4 | G9: 4
A10: режим работы (часы) | B10: 12 | G10: 12
A11: кол-во детей | B11: 9 | G11: 9
A12: стоим-сть используемого оборудования в.т.ч | B12: =B13+B14+B16+B15 -> 153959 | G12: 153959
A13: ноутбок,компьютер | B13: 19734 | G13: 19734
A14: интерактивный комплект | B14: 97000 | G14: 97000
A15: документ камера | B15: 24875 | G15: 24875
A16: принтер | B16: 12350 | G16: 12350
A17: Оплата труда : | B17: =B24 -> 10.74 | G17: 10.74
A18: оклад | B18: 14232.00
A19: за метод.литер. | B19: 100.00
A20: за категорию(первая)( 12%) | B20: =B18*12/100 -> 1707.84
A21: за звание | B21: 0.00
A22: начисление 30,2% | B22: =(B18+B19+B20)*30.2% -> 4844.03
A23: всего | B23: =SUM(B18:B22) -> 20883.87
A24: оплата труда за час занятия на 1го обучающегося | B24: =B23/18/12*1/B11 -> 10.74
A26: 2.Затраты на материальные запасы на 1го ребенка- | D26: =B32 -> 118.80 | G26: =D26 -> 118.80
A27: Стоимость оборудования | B27: =B12 -> 153959
A28: количество месяцев использования( 12,24,36) | B28: 36
A30: Стоимость использования оборудования в месяц в рублях | B30: =B27/36 -> 4276.64
A31: Затраты на 1занятие | B31: =B30/B9 -> 1069.16
A32: Затраты на 1го уч-ся | B32: =B31/B11 -> 118.80
A33: 3. Объем накладных затрат 1 ребенка - руб.
A34: Расчет накладных затрат
A35: прогноз затрат на АУП
A36: Прогноз затрат общехозяйственного назнач. | G36: =B43 -> 20.56
A37: Прогноз суммы начисленной амортизации имущества общехоз-го назнач.
A38: Прогноз ФОТ основного персонала | G38: =G17 -> 10.74
A39: Коэффициент накладных затрат 5=(1+2+3)/4 | G39: =(G35+G36+G37)/G38 -> 1.91
A40: Затраты на основн персонал, | G40: =G38 -> 10.74
A41: Итого накладные затраты (в час на 1 реб) | G41: =G36 -> 20.56
A43: 3.Затраты общехозяйственного назначения всего- | B43: =B45 -> 20.56 | G43: =B43 -> 20.56
A45: всего затраты | B45: =B54+B55+B79 -> 20.56
A46: а, оплата труда обслуживающего персонала
A47: оклад | B47: 12792
A48: недельная нагрузка в часах | B48: 40
A49: количество недель | B49: 4
A50: количество часов | B50: 1
A51: количество детей | B51: =B11 -> 9
A52: затраты на 1 го уч-ся в рублях | B52: =B47/B48/B49/B50/B51 -> 8.88
A53: начисление на опл. труда 30,2% | B53: =B52*30.2/100 -> 2.68
A54: всего | B54: =B52+B53 -> 11.57
A55: 4. Затраты на коммунальные услуги: | B55: =(B61+B62+B74)/B11 -> 1.33 | G55: =B55 -> 1.33
A56: годовое потребление эл/энерза 2020год квт/час | B56: 65438
A57: кол/во рабочих (учебных)дней в году | B57: 210
A58: кол/во часов работы здания школы | B58: 12
A59: Годовой(средний )тариф за эл/энергию | B59: 7.32
A60: затраты в 1час работы зд.школы.(квт/час) | B60: =B56/B57/B58 -> 25.97
A61: затраты эл/э в 1час работы зд.школы.(в рублях) | B61: =B60/B6*B7*B59 -> 2.42 | G61: =B61 -> 2.42
A62: Вода- | B62: =G73 -> 5.46 | G62: =B62 -> 5.46
A63: норматив на 1го ребенка (куб.м) | G63: 2.4
A64: кол-во рабочих дней | G64: 210
A65: по нормативу на 1 ребенка в год водоснабжение 2,4 куб.м/ 216 учебн.дн=0,011куб.м в день,т.е.11л | G65: =(G63/G64)*1000 -> 11
A66: 1 реб*11л(в день )/12 часов/1000=0,0009 куб.м*35,16 руб.=0,0316руб.*9чел= | G66: =G65/12/1000*35.16*G11 -> 0.30
A67: 2 работника( учительница, уборщ)*11 л/12 час/1000= 0,0018куб.м.*35,16 руб. | G67: =2*11/12/1000*35.16 -> 0.06
A68: На мытье полов 75 л/1000=0,075 куб.м.*35,16 руб. | G68: =75/1000*35.16 -> 2.64
A69: по нормативу на 1 ребенка в год водоотведение 2,2куб.мет/ 216 учебн.дн=0,010куб.м в день,т.е.10л | G69: =2.2/210*1000 -> 10
A70: 1реб*10л(в день) /12часов/1000=0,0008куб.м*28,21ру*9чел | G70: =10/12/1000*28.21*G11 -> 0.21
A71: 2 работника( учительница, уборщ)*10 л/12 час/1000= 0,0016куб.м*28,21 | G71: =2*G69/12/1000*28.21 -> 0.05
G72: =(0.0009+0.0018+0.075)*28.21 -> 2.19
G73: =G66+G67+G68+G70+G71+G72 -> 5.46
A74: отопление (гкал) по факту | B74: =G78 -> 4.09 | G74: 924.8
A75: 924,8Гкал(по факту 2020г)/8 мес(период отопления)= 115,6Гкал в мес. | G75: =G74/8 -> 115.6
A76: 115,6Гкал/ 4396,6кв.м.* 56кв.м= 1,47241Гкал/30 дн/24 ч*1 ч*1999,99руб.= | G76: =G75/G6*G7/30/24*1 -> 0.002
G77: 1999.15
G78: =G76*G77 -> 4.09
A79: 5.Материальные затраты - руб. | B79: =G84+G89 -> 7.666666667 | G79: =G84+G89 -> 7.666666667
A80: - Канцелярские товары (для ведения документации) – 1,3 руб. на одного ребенка | G80: 1.3
A81: Стоимость – 1248 руб. | G81: 1248
A82: Срок полезного использования – 8 мес. | G82: 8
A83: Расходы в месяц – 1248/8=156 | G83: =G81/8 -> 156
A84: Затраты на одного ребенка за одно занятие – 156/12(часов в месяц)=13/9(кол-во детей) | G84: =G83/G9/G11 -> 4.333333333
A85: - Моющие средства для уборки помещения – 1,04 руб. на одного ребенка | G85: 1.04
A86: Стоимость – 960 руб. | G86: 960
A87: Срок полезного использования – 8 мес. | G87: 8
A88: Расходы в месяц –960/8=120руб | G88: =G86/G87 -> 120
A89: Затраты на одного ребенка за одно занятие – 120/12(часов в месяц)=10/9(кол-во детей) | G89: =G88/G9/G11 -> 3.333333333
A90: всего на материальные затраты: | C90: 1,444+1,111 | G90: =G84+G89 -> 7.666666667
A91: Расчет стоимости одного занятия на 1 уч-ся:
A92: Расчет цены на оказание платной услуги
A93: Наименование статей затрат
A94: Затраты на оплату труда основного персонала | G94: =G17*G11 -> 96.68
A95: Затраты материальных запасов | G95: =G26*G11 -> 1069.16
A96: Сумма начисленной амортизации оборудования, используемого при оказании платной услуги | G96: 0
A97: Накладные затраты, относимые на платную услугу | G97: =G43*G11 -> 185.06
A98: Итого затрат | G98: =G97+G96+G95+G94 -> 1350.90
A99: Цена на 1 платную услугу на 1 ребенка | G99: =G98/G11 -> 150.10
A100: Цена в месяц на 1 ребенка | G100: =G99*G9 -> 600.40 | H100: 600 руб
G101: 4р в мес

Sheet Меридиан
A5: Городская школа №3
A6: НО Меридиан
A7: Чибидина Т.И
A8: общая площадь школы | B8: 4396.6 | G8: =B8 -> 4396.6
A9: занимаемая площадь | B9: 56 | G9: =B9 -> 56
A10: кол-во занятий в неделю(часы) | B10: 1 | G10: 1
A11: кол-во занятий в месяц(часы) | B11: =B10*4 -> 4 | G11: 4
A12: режим работы (часы) | B12: 12 | G12: 12
A13: кол-во детей | B13: 9 | G13: 9
A14: стоим-сть используемого оборудования в.т.ч | B14: =B15+B16+B18+B17 -> 153830 | G14: 153830
A15: ноутбок,компьютер | B15: 19530 | G15: 19530
A16: интерактивный комплект | B16: 97073 | G16: 97073
A17: документ камера | B17: 24877 | G17: 24877
A18: принтер | B18: 12350 | G18: 12350
A19: Оплата труда : | B19: =B26 -> 10.74 | G19: 10.74
A20: оклад | B20: 14232.00
A21: за метод.литер. | B21: 100.00
A22: за категорию(первая)( 12%) | B22: =B20*12/100 -> 1707.84
A23: за звание | B23: 0.00
A24: начисление 30,2% | B24: =(B20+B21+B22)*30.2% -> 4844.03
A25: всего | B25: =SUM(B20:B24) -> 20883.87
A26: оплата труда за час занятия на 1го обучающегося | B26: =B25/18/12*1/B13 -> 10.74
A28: 2.Затраты на материальные запасы на 1го ребенка- | D28: =B34 -> 118.70 | G28: =D28 -> 118.70
A29: Стоимость оборудования | B29: =B14 -> 153830
A30: количество месяцев использования( 12,24,36) | B30: 36
A32: Стоимость использования оборудования в месяц в рублях | B32: =B29/36 -> 4273.06
A33: Затраты на 1занятие | B33: =B32/B11 -> 1068.26
A34: Затраты на 1го уч-ся | B34: =B33/B13 -> 118.70
A35: 3. Объем накладных затрат 1 ребенка - руб.
A36: Расчет накладных затрат
A37: прогноз затрат на АУП
A38: Прогноз затрат общехозяйственного назнач. | G38: =B45 -> 20.56
A39: Прогноз суммы начисленной амортизации имущества общехоз-го назнач.
A40: Прогноз ФОТ основного персонала | G40: =G19 -> 10.74
A41: Коэффициент накладных затрат 5=(1+2+3)/4 | G41: =(G37+G38+G39)/G40 -> 1.91
A42: Затраты на основн персонал, | G42: =G40 -> 10.74
A43: Итого накладные затраты (в час на 1 реб) | G43: =G38 -> 20.56
A45: 3.Затраты общехозяйственного назначения всего- | B45: =B47 -> 20.56 | G45: =B45 -> 20.56
A47: всего затраты | B47: =B56+B57+B81 -> 20.56
A48: а, оплата труда обслуживающего персонала
A49: оклад | B49: 12792
A50: недельная нагрузка в часах | B50: 40
A51: количество недель | B51: 4
A52: количество часов | B52: 1
A53: количество детей | B53: =B13 -> 9
A54: затраты на 1 го уч-ся в рублях | B54: =B49/B50/B51/B52/B53 -> 8.88
A55: начисление на опл. труда 30,2% | B55: =B54*30.2/100 -> 2.68
A56: всего | B56: =B54+B55 -> 11.57
A57: 4. Затраты на коммунальные услуги: | B57: =(B63+B64+B76)/B13 -> 1.33 | G57: =B57 -> 1.33
A58: годовое потребление эл/энерза 2020год квт/час | B58: 65438
A59: кол/во рабочих (учебных)дней в году | B59: 210
A60: кол/во часов работы здания школы | B60: 12
A61: Годовой(средний )тариф за эл/энергию | B61: 7.32
A62: затраты в 1час работы зд.школы.(квт/час) | B62: =B58/B59/B60 -> 25.97
A63: затраты эл/э в 1час работы зд.школы.(в рублях) | B63: =B62/B8*B9*B61 -> 2.42 | G63: =B63 -> 2.42
A64: Вода- | B64: =G75 -> 5.46 | G64: =B64 -> 5.46
A65: норматив на 1го ребенка (куб.м) | G65: 2.4
A66: кол-во рабочих дней | G66: 210
A67: по нормативу на 1 ребенка в год водоснабжение 2,4 куб.м/ 216 учебн.дн=0,011куб.м в день,т.е.11л | G67: =(G65/G66)*1000 -> 11
A68: 1 реб*11л(в день )/12 часов/1000=0,0009 куб.м*35,16 руб.=0,0316руб.*9чел= | G68: =G67/12/1000*35.16*G13 -> 0.30
A69: 2 работника( учительница, уборщ)*11 л/12 час/1000= 0,0018куб.м.*35,16 руб. | G69: =2*11/12/1000*35.16 -> 0.06
A70: На мытье полов 75 л/1000=0,075 куб.м.*35,16 руб. | G70: =75/1000*35.16 -> 2.64
A71: по нормативу на 1 ребенка в год водоотведение 2,2куб.мет/ 216 учебн.дн=0,010куб.м в день,т.е.10л | G71: =2.2/210*1000 -> 10
A72: 1реб*10л(в день) /12часов/1000=0,0008куб.м*28,21ру*9чел | G72: =10/12/1000*28.21*G13 -> 0.21
A73: 2 работника( учительница, уборщ)*10 л/12 час/1000= 0,0016куб.м*28,21 | G73: =2*G71/12/1000*28.21 -> 0.05
G74: =(0.0009+0.0018+0.075)*28.21 -> 2.19
G75: =G68+G69+G70+G72+G73+G74 -> 5.46
A76: отопление (гкал) по факту | B76: =G80 -> 4.09 | G76: 924.8
A77: 924,8Гкал(по факту 2020г)/8 мес(период отопления)= 115,6Гкал в мес. | G77: =G76/8 -> 115.6
A78: 115,6Гкал/ 4396,6кв.м.* 56кв.м= 1,47241Гкал/30 дн/24 ч*1 ч*1999,99руб.= | G78: =G77/G8*G9/30/24*1 -> 0.002
G79: 1999.15
G80: =G78*G79 -> 4.09
A81: 5.Материальные затраты - руб. | B81: =G86+G91 -> 7.666666667 | G81: =G86+G91 -> 7.666666667
A82: - Канцелярские товары (для ведения документации) – 1,3 руб. на одного ребенка | G82: 1.3
A83: Стоимость – 1248 руб. | G83: 1248
A84: Срок полезного использования – 8 мес. | G84: 8
A85: Расходы в месяц – 1248/8=156 | G85: =G83/8 -> 156
A86: Затраты на одного ребенка за одно занятие – 156/12(часов в месяц)=13/9(кол-во детей) | G86: =G85/G11/G13 -> 4.333333333
A87: - Моющие средства для уборки помещения – 1,04 руб. на одного ребенка | G87: 1.04
A88: Стоимость – 960 руб. | G88: 960
A89: Срок полезного использования – 8 мес. | G89: 8
A90: Расходы в месяц –960/8=120руб | G90: =G88/G89 -> 120
A91: Затраты на одного ребенка за одно занятие – 120/12(часов в месяц)=10/9(кол-во детей) | G91: =G90/G11/G13 -> 3.333333333
A92: всего на материальные затраты: | C92: 1,444+1,111 | G92: =G86+G91 -> 7.666666667
A93: Расчет стоимости одного занятия на 1 уч-ся:
A94: Расчет цены на оказание платной услуги
A95: Наименование статей затрат
A96: Затраты на оплату труда основного персонала | G96: =G19*G13 -> 96.68
A97: Затраты материальных запасов | G97: =G28*G13 -> 1068.26
A98: Сумма начисленной амортизации оборудования, используемого при оказании платной услуги | G98: 0
A99: Накладные затраты, относимые на платную услугу | G99: =G45*G13 -> 185.06
A100: Итого затрат | G100: =G99+G98+G97+G96 -> 1350.01
A101: Цена на 1 платную услугу на 1 ребенка | G101: =G100/G13 -> 150.00
A102: Цена в месяц на 1 ребенка | G102: =G101*G11 -> 600.00 | H102: 600 руб
G103: 4р в мес

Sheet Счастливый английский
A3: Городская школа №3
A4: Счастливый английский
A5: Краснова А.В.
A6: общая площадь школы | B6: 4396.6 | G6: =B6 -> 4396.6
A7: занимаемая площадь | B7: 56 | G7: =B7 -> 56
A8: кол-во занятий в неделю(часы) | B8: 1 | G8: 1
A9: кол-во занятий в месяц(часы) | B9: =B8*4 -> 4 | G9: 4
A10: режим работы (часы) | B10: 12 | G10: 12
A11: кол-во детей | B11: 9 | G11: 9
A12: стоим-сть используемого оборудования в.т.ч | B12: =B13+B14+B16+B15 -> 154154 | G12: 154154
A13: ноутбок,компьютер | B13: 19934 | G13: 19934
A14: интерактивный комплект | B14: 96810 | G14: 96810
A15: документ камера | B15: 25100 | G15: 25100
A16: принтер | B16: 12310 | G16: 12310
A17: Оплата труда : | B17: =B24 -> 10.74 | G17: 10.74
A18: оклад | B18: 14232.00
A19: за метод.литер. | B19: 100.00
A20: за категорию(первая)( 12%) | B20: =B18*12/100 -> 1707.84
A21: за звание | B21: 0.00
A22: начисление 30,2% | B22: =(B18+B19+B20)*30.2% -> 4844.03
A23: всего | B23: =SUM(B18:B22) -> 20883.87
A24: оплата труда за час занятия на 1го обучающегося | B24: =B23/18/12*1/B11 -> 10.74
A26: 2.Затраты на материальные запасы на 1го ребенка- | D26: =B32 -> 118.95 | G26: =D26 -> 118.95
A27: Стоимость оборудования | B27: =B12 -> 154154
A28: количество месяцев использования( 12,24,36) | B28: 36
A30: Стоимость использования оборудования в месяц в рублях | B30: =B27/36 -> 4282.06
A31: Затраты на 1занятие | B31: =B30/B9 -> 1070.51
A32: Затраты на 1го уч-ся | B32: =B31/B11 -> 118.95
A33: 3. Объем накладных затрат 1 ребенка - руб.
A34: Расчет накладных затрат
A35: прогноз затрат на АУП
A36: Прогноз затрат общехозяйственного назнач. | G36: =B43 -> 20.56
A37: Прогноз суммы начисленной амортизации имущества общехоз-го назнач.
A38: Прогноз ФОТ основного персонала | G38: =G17 -> 10.74
A39: Коэффициент накладных затрат 5=(1+2+3)/4 | G39: =(G35+G36+G37)/G38 -> 1.91
A40: Затраты на основн персонал, | G40: =G38 -> 10.74
A41: Итого накладные затраты (в час на 1 реб) | G41: =G36 -> 20.56
A43: 3.Затраты общехозяйственного назначения всего- | B43: =B45 -> 20.56 | G43: =B43 -> 20.56
A45: всего затраты | B45: =B54+B55+B79 -> 20.56
A46: а, оплата труда обслуживающего персонала
A47: оклад | B47: 12792
A48: недельная нагрузка в часах | B48: 40
A49: количество недель | B49: 4
A50: количество часов | B50: 1
A51: количество детей | B51: =B11 -> 9
A52: затраты на 1 го уч-ся в рублях | B52: =B47/B48/B49/B50/B51 -> 8.88
A53: начисление на опл. труда 30,2% | B53: =B52*30.2/100 -> 2.68
A54: всего | B54: =B52+B53 -> 11.57
A55: 4. Затраты на коммунальные услуги: | B55: =(B61+B62+B74)/B11 -> 1.33 | G55: =B55 -> 1.33
A56: годовое потребление эл/энерза 2020год квт/час | B56: 65438
A57: кол/во рабочих (учебных)дней в году | B57: 210
A58: кол/во часов работы здания школы | B58: 12
A59: Годовой(средний )тариф за эл/энергию | B59: 7.32
A60: затраты в 1час работы зд.школы.(квт/час) | B60: =B56/B57/B58 -> 25.97
A61: затраты эл/э в 1час работы зд.школы.(в рублях) | B61: =B60/B6*B7*B59 -> 2.42 | G61: =B61 -> 2.42
A62: Вода- | B62: =G73 -> 5.46 | G62: =B62 -> 5.46
A63: норматив на 1го ребенка (куб.м) | G63: 2.4
A64: кол-во рабочих дней | G64: 210
A65: по нормативу на 1 ребенка в год водоснабжение 2,4 куб.м/ 216 учебн.дн=0,011куб.м в день,т.е.11л | G65: =(G63/G64)*1000 -> 11
A66: 1 реб*11л(в день )/12 часов/1000=0,0009 куб.м*35,16 руб.=0,0316руб.*9чел= | G66: =G65/12/1000*35.16*G11 -> 0.30
A67: 2 работника( учительница, уборщ)*11 л/12 час/1000= 0,0018куб.м.*35,16 руб. | G67: =2*11/12/1000*35.16 -> 0.06
A68: На мытье полов 75 л/1000=0,075 куб.м.*35,16 руб. | G68: =75/1000*35.16 -> 2.64
A69: по нормативу на 1 ребенка в год водоотведение 2,2куб.мет/ 216 учебн.дн=0,010куб.м в день,т.е.10л | G69: =2.2/210*1000 -> 10
A70: 1реб*10л(в день) /12часов/1000=0,0008куб.м*28,21ру*9чел | G70: =10/12/1000*28.21*G11 -> 0.21
A71: 2 работника( учительница, уборщ)*10 л/12 час/1000= 0,0016куб.м*28,21 | G71: =2*G69/12/1000*28.21 -> 0.05
G72: =(0.0009+0.0018+0.075)*28.21 -> 2.19
G73: =G66+G67+G68+G70+G71+G72 -> 5.46
A74: отопление (гкал) по факту | B74: =G78 -> 4.09 | G74: 924.8
A75: 924,8Гкал(по факту 2020г)/8 мес(период отопления)= 115,6Гкал в мес. | G75: =G74/8 -> 115.6
A76: 115,6Гкал/ 4396,6кв.м.* 56кв.м= 1,47241Гкал/30 дн/24 ч*1 ч*1999,99руб.= | G76: =G75/G6*G7/30/24*1 -> 0.002
G77: 1999.15
G78: =G76*G77 -> 4.09
A79: 5.Материальные затраты - руб. | B79: =G84+G89 -> 7.666666667 | G79: =G84+G89 -> 7.666666667
A80: - Канцелярские товары (для ведения документации) – 1,3 руб. на одного ребенка | G80: 1.3
A81: Стоимость – 1248 руб. | G81: 1248
A82: Срок полезного использования – 8 мес. | G82: 8
A83: Расходы в месяц – 1248/8=156 | G83: =G81/8 -> 156
A84: Затраты на одного ребенка за одно занятие – 156/12(часов в месяц)=13/9(кол-во детей) | G84: =G83/G9/G11 -> 4.333333333
A85: - Моющие средства для уборки помещения – 1,04 руб. на одного ребенка | G85: 1.04
A86: Стоимость – 960 руб. | G86: 960
A87: Срок полезного использования – 8 мес. | G87: 8
A88: Расходы в месяц –960/8=120руб | G88: =G86/G87 -> 120
A89: Затраты на одного ребенка за одно занятие – 120/12(часов в месяц)=10/9(кол-во детей) | G89: =G88/G9/G11 -> 3.333333333
A90: всего на материальные затраты: | C90: 1,444+1,111 | G90: =G84+G89 -> 7.666666667
A91: Расчет стоимости одного занятия на 1 уч-ся:
A92: Расчет цены на оказание платной услуги
A93: Наименование статей затрат
A94: Затраты на оплату труда основного персонала | G94: =G17*G11 -> 96.68
A95: Затраты материальных запасов | G95: =G26*G11 -> 1070.51
A96: Сумма начисленной амортизации оборудования, используемого при оказании платной услуги | G96: 0
A97: Накладные затраты, относимые на платную услугу | G97: =G43*G11 -> 185.06
A98: Итого затрат | G98: =G97+G96+G95+G94 -> 1352.26
A99: Цена на 1 платную услугу на 1 ребенка | G99: =G98/G11 -> 150.25
A100: Цена в месяц на 1 ребенка | G100: =G99*G9 -> 601.00

Sheet Юный физик
A3: Городская школа №3
A4: Юный Физик
A5: Фомичева Р.Р.
A6: общая площадь школы | B6: 4396.6 | G6: =B6 -> 4396.6
A7: занимаемая площадь | B7: 56 | G7: =B7 -> 56
A8: кол-во занятий в неделю(часы) | B8: 1 | G8: 1
A9: кол-во занятий в месяц(часы) | B9: =B8*4 -> 4 | G9: 4
A10: режим работы (часы) | B10: 12 | G10: 12
A11: кол-во детей | B11: 9 | G11: 9
A12: стоим-сть используемого оборудования в.т.ч | B12: =B13+B14+B16+B15 -> 153959 | G12: 153959
A13: ноутбок,компьютер | B13: 19734 | G13: 19734
A14: интерактивный комплект | B14: 97000 | G14: 97000
A15: документ камера | B15: 24875 | G15: 24875
A16: принтер | B16: 12350 | G16: 12350
A17: Оплата труда : | B17: =B24 -> 10.74 | G17: 10.74
A18: оклад | B18: 14232.00
A19: за метод.литер. | B19: 100.00
A20: за категорию(первая)( 12%) | B20: =B18*12/100 -> 1707.84
A21: за звание | B21: 0.00
A22: начисление 30,2% | B22: =(B18+B19+B20)*30.2% -> 4844.03
A23: всего | B23: =SUM(B18:B22) -> 20883.87
A24: оплата труда за час занятия на 1го обучающегося | B24: =B23/18/12*1/B11 -> 10.74
A26: 2.Затраты на материальные запасы на 1го ребенка- | D26: =B32 -> 118.80 | G26: =D26 -> 118.80
A27: Стоимость оборудования | B27: =B12 -> 153959
A28: количество месяцев использования( 12,24,36) | B28: 36
A30: Стоимость использования оборудования в месяц в рублях | B30: =B27/36 -> 4276.64
A31: Затраты на 1занятие | B31: =B30/B9 -> 1069.16
A32: Затраты на 1го уч-ся | B32: =B31/B11 -> 118.80
A33: 3. Объем накладных затрат 1 ребенка - руб.
A34: Расчет накладных затрат
A35: прогноз затрат на АУП
A36: Прогноз затрат общехозяйственного назнач. | G36: =B43 -> 20.56
A37: Прогноз суммы начисленной амортизации имущества общехоз-го назнач.
A38: Прогноз ФОТ основного персонала | G38: =G17 -> 10.74
A39: Коэффициент накладных затрат 5=(1+2+3)/4 | G39: =(G35+G36+G37)/G38 -> 1.91
A40: Затраты на основн персонал, | G40: =G38 -> 10.74
A41: Итого накладные затраты (в час на 1 реб) | G41: =G36 -> 20.56
A43: 3.Затраты общехозяйственного назначения всего- | B43: =B45 -> 20.56 | G43: =B43 -> 20.56
A45: всего затраты | B45: =B54+B55+B79 -> 20.56
A46: а, оплата труда обслуживающего персонала
A47: оклад | B47: 12792
A48: недельная нагрузка в часах | B48: 40
A49: количество недель | B49: 4
A50: количество часов | B50: 1
A51: количество детей | B51: =B11 -> 9
A52: затраты на 1 го уч-ся в рублях | B52: =B47/B48/B49/B50/B51 -> 8.88
A53: начисление на опл. труда 30,2% | B53: =B52*30.2/100 -> 2.68
A54: всего | B54: =B52+B53 -> 11.57
A55: 4. Затраты на коммунальные услуги: | B55: =(B61+B62+B74)/B11 -> 1.33 | G55: =B55 -> 1.33
A56: годовое потребление эл/энерза 2020год квт/час | B56: 65438
A57: кол/во рабочих (учебных)дней в году | B57: 210
A58: кол/во часов работы здания школы | B58: 12
A59: Годовой(средний )тариф за эл/энергию | B59: 7.32
A60: затраты в 1час работы зд.школы.(квт/час) | B60: =B56/B57/B58 -> 25.97
A61: затраты эл/э в 1час работы зд.школы.(в рублях) | B61: =B60/B6*B7*B59 -> 2.42 | G61: =B61 -> 2.42
A62: Вода- | B62: =G73 -> 5.46 | G62: =B62 -> 5.46
A63: норматив на 1го ребенка (куб.м) | G63: 2.4
A64: кол-во рабочих дней | G64: 210
A65: по нормативу на 1 ребенка в год водоснабжение 2,4 куб.м/ 216 учебн.дн=0,011куб.м в день,т.е.11л | G65: =(G63/G64)*1000 -> 11
A66: 1 реб*11л(в день )/12 часов/1000=0,0009 куб.м*35,16 руб.=0,0316руб.*9чел= | G66: =G65/12/1000*35.16*G11 -> 0.30
A67: 2 работника( учительница, уборщ)*11 л/12 час/1000= 0,0018куб.м.*35,16 руб. | G67: =2*11/12/1000*35.16 -> 0.06
A68: На мытье полов 75 л/1000=0,075 куб.м.*35,16 руб. | G68: =75/1000*35.16 -> 2.64
A69: по нормативу на 1 ребенка в год водоотведение 2,2куб.мет/ 216 учебн.дн=0,010куб.м в день,т.е.10л | G69: =2.2/210*1000 -> 10
A70: 1реб*10л(в день) /12часов/1000=0,0008куб.м*28,21ру*9чел | G70: =10/12/1000*28.21*G11 -> 0.21
A71: 2 работника( учительница, уборщ)*10 л/12 час/1000= 0,0016куб.м*28,21 | G71: =2*G69/12/1000*28.21 -> 0.05
G72: =(0.0009+0.0018+0.075)*28.21 -> 2.19
G73: =G66+G67+G68+G70+G71+G72 -> 5.46
A74: отопление (гкал) по факту | B74: =G78 -> 4.09 | G74: 924.8
A75: 924,8Гкал(по факту 2020г)/8 мес(период отопления)= 115,6Гкал в мес. | G75: =G74/8 -> 115.6
A76: 115,6Гкал/ 4396,6кв.м.* 56кв.м= 1,47241Гкал/30 дн/24 ч*1 ч*1999,99руб.= | G76: =G75/G6*G7/30/24*1 -> 0.002
G77: 1999.15
G78: =G76*G77 -> 4.09
A79: 5.Материальные затраты - руб. | B79: =G84+G89 -> 7.666666667 | G79: =G84+G89 -> 7.666666667
A80: - Канцелярские товары (для ведения документации) – 1,3 руб. на одного ребенка | G80: 1.3
A81: Стоимость – 1248 руб. | G81: 1248
A82: Срок полезного использования – 8 мес. | G82: 8
A83: Расходы в месяц – 1248/8=156 | G83: =G81/8 -> 156
A84: Затраты на одного ребенка за одно занятие – 156/12(часов в месяц)=13/9(кол-во детей) | G84: =G83/G9/G11 -> 4.333333333
A85: - Моющие средства для уборки помещения – 1,04 руб. на одного ребенка | G85: 1.04
A86: Стоимость – 960 руб. | G86: 960
A87: Срок полезного использования – 8 мес. | G87: 8
A88: Расходы в месяц –960/8=120руб | G88: =G86/G87 -> 120
A89: Затраты на одного ребенка за одно занятие – 120/12(часов в месяц)=10/9(кол-во детей) | G89: =G88/G9/G11 -> 3.333333333
A90: всего на материальные затраты: | C90: 1,444+1,111 | G90: =G84+G89 -> 7.666666667
A91: Расчет стоимости одного занятия на 1 уч-ся:
A92: Расчет цены на оказание платной услуги
A93: Наименование статей затрат
A94: Затраты на оплату труда основного персонала | G94: =G17*G11 -> 96.68
A95: Затраты материальных запасов | G95: =G26*G11 -> 1069.16
A96: Сумма начисленной амортизации оборудования, используемого при оказании платной услуги | G96: 0
A97: Накладные затраты, относимые на платную услугу | G97: =G43*G11 -> 185.06
A98: Итого затрат | G98: =G97+G96+G95+G94 -> 1350.90
A99: Цена на 1 платную услугу на 1 ребенка | G99: =G98/G11 -> 150.10
A100: Цена в месяц на 1 ребенка | G100: =G99*G9 -> 600.40 | H100: 600 руб
G101: 4р в мес
